bitfinex-derivatives/quotes_SOLF0:USTF0_20250903
["timestamp","ask_amount","ask_price","bid_price","bid_amount"]
[1756865685232,7.82,211.45,211.38,1.7209358]
[1756865685433,7.82,211.45,211.37,0.03276034]
[1756865685434,7.82,211.47,211.4,1.7209358]
[1756865686035,7.82,211.47,211.41,0.03083157]
[1756865686233,7.82,211.47,211.41,1.75176737]
[1756865688133,9.5409358,211.47,211.41,0.03083157]
[1756865688728,1.7209358,211.45,211.41,0.03083157]
[1756865689032,7.82,211.42,211.41,0.03083157]
[1756865689939,9.5409358,211.42,211.41,0.03083157]
[1756865693433,7.82,211.42,211.41,0.03083157]
[1756865696238,7.82,211.42,211.21,4.2607]
[1756865696437,7.82,211.42,211.29,7.29]
[1756865696636,7.82,211.42,211.31,2.6871918]
[1756865696832,125.64,211.41,211.32,7.29]
[1756865697631,0.03324714,211.39,211.32,7.29]
[1756865699138,7.85324714,211.39,211.32,7.29]
[1756865700842,7.85324714,211.39,211.21,7.29]
[1756865700843,10.5071918,211.38,211.21,7.29]
[1756865701036,2.6871918,211.35,211.23,7.29]
[1756865701338,7.82,211.33,211.23,7.29]
[1756865701538,0.03555065,211.31,211.23,7.29]
[1756865705634,0.82390265,211.41,211.22,2.6871918]
[1756865705635,7.82,211.42,211.29,7.29]
[1756865705843,7.82,211.42,211.33,7.29]
[1756865706538,43.2,211.45,211.36,7.29]
[1756865706941,43.2,211.45,211.38,0.03456285]
[1756865707137,125.5,211.49,211.39,7.29]
[1756865707344,7.82,211.5,211.41,2.6871918]
[1756865707543,7.82,211.5,211.39,7.29]
[1756865707845,7.82,211.47,211.39,7.29]
[1756865708042,7.82,211.47,211.41,0.03012839]
[1756865708540,7.82,211.51,211.42,9.9771918]
[1756865708737,7.82,211.57,211.45,2.6871918]
[1756865708937,125.46,211.56,211.46,7.29]
[1756865709138,125.46,211.56,211.48,2.6871918]
[1756865709540,125.46,211.56,211.49,0.03603597]
[1756865709850,125.46,211.56,211.49,7.32603597]
[1756865710349,125.44,211.65,211.55,7.29]
[1756865711045,7.82,211.64,211.58,0.03415836]
[1756865712143,125.4,211.63,211.58,0.03415836]
[1756865712344,7.47,211.62,211.58,0.03415836]
[1756865712548,7.47,211.62,211.5,7.89]
[1756865712749,125.4,211.63,211.58,0.03177982]
[1756865712944,7.47,211.62,211.58,0.03177982]
[1756865713244,125.38,211.61,211.58,0.03177982]
[1756865713450,132.85,211.61,211.58,0.03177982]
[1756865713644,132.85,211.61,211.53,7.89]
[1756865713844,132.85,211.61,211.57,0.03142665]
[1756865714045,7.47,211.6,211.57,0.03142665]
[1756865714952,7.47,211.72,211.57,0.03142665]
[1756865715251,7.47,211.7,211.53,7.89]
[1756865715451,7.47,211.7,211.62,0.03213983]
[1756865716151,7.47,211.68,211.62,0.03213983]
[1756865717439,7.47,211.68,211.53,7.89]
[1756865717440,14.11010001,211.68,211.53,7.89]
[1756865717645,14.11010001,211.68,211.46,7.89]
[1756865718247,125.26,211.67,211.46,7.89]
[1756865718450,7.47,211.66,211.46,7.89]
[1756865719043,7.47,211.66,211.45,6.64010001]
[1756865719044,7.47,211.66,211.51,7.89]
[1756865719243,0.03205372,211.58,211.51,7.89]
[1756865721554,125.24,211.65,211.55,6.64010001]
[1756865721754,125.24,211.65,211.56,7.89]
[1756865722852,125.24,211.65,211.58,0.03280397]
[1756865723553,7.47,211.7,211.58,0.03280397]
[1756865725357,125.12,211.69,211.58,0.03280397]
[1756865725557,7.47,211.68,211.58,0.03280397]
[1756865726056,125.12,211.67,211.58,0.03280397]
[1756865726251,7.47,211.68,211.58,0.03280397]
[1756865726457,7.47,211.68,211.59,7.89]
[1756865726859,7.47,211.72,211.59,7.89]
[1756865727455,7.47,211.72,211.63,0.03404279]
[1756865727658,7.47,211.72,211.63,7.92404279]
[1756865732454,7.47,211.72,211.63,0.03404279]
[1756865735859,7.47,211.7,211.63,0.03404279]
[1756865736656,72.6,211.69,211.63,0.03404279]
[1756865737264,7.47,211.68,211.63,0.03404279]
[1756865738165,7.98194681,211.68,211.53,7.89]
[1756865738364,7.50194681,211.68,211.53,7.89]
[1756865738567,7.47,211.68,211.53,7.89]
[1756865739557,0.03307775,211.63,211.53,7.89]
[1756865740558,0.03307775,211.63,211.56,7.89]
[1756865743172,7.57,211.62,211.5,7.22]
[1756865743766,0.03547106,211.58,211.5,7.22]
[1756865745067,296.48894281,211.75,211.46,66.1998]
[1756865745068,7.57,211.73,211.57,6.64010001]
[1756865745274,7.57,211.73,211.58,7.22]
[1756865745871,7.57,211.73,211.59,7.22]
[1756865746272,14.19,211.86,211.64,0.03229246]
[1756865746273,7.57,211.79,211.64,0.03229246]
[1756865746469,7.57,211.79,211.65,7.22]
[1756865746870,7.57,211.79,211.7,0.03423976]
[1756865749772,7.57,211.77,211.6,7.22]
[1756865749976,7.60054035,211.77,211.6,7.22]
[1756865750174,7.57,211.77,211.6,7.22]
[1756865750475,12.81894281,211.77,211.6,7.22]
[1756865750676,7.57,211.77,211.6,7.22]
[1756865750876,7.57,211.75,211.6,7.22]
[1756865751072,0.03485573,211.71,211.66,0.0305081]
[1756865751282,7.57,211.7,211.66,0.0305081]
[1756865751477,0.03485573,211.71,211.66,0.0305081]
[1756865752471,7.57,211.7,211.66,0.0305081]
[1756865752870,0.03485573,211.71,211.66,0.0305081]
[1756865753071,7.57,211.7,211.66,0.0305081]
[1756865753377,0.03485573,211.71,211.66,0.0305081]
[1756865753576,7.57,211.7,211.66,0.0305081]
[1756865754074,7.57,211.67,211.48,4.17035202]
[1756865754279,7.57,211.65,211.49,7.22]
[1756865754478,132.27,211.65,211.53,7.22]
[1756865755479,7.60330555,211.61,211.53,7.22]
[1756865756077,7.60330555,211.61,211.47,7.22]
[1756865756381,7.57,211.61,211.47,7.22]
[1756865756580,0.03570004,211.56,211.47,11.39035202]
[1756865757477,0.03570004,211.56,211.47,7.22]
[1756865759977,0.03570004,211.56,211.49,4.17035202]
[1756865760177,0.03570004,211.56,211.5,7.22]
[1756865763992,0.03570004,211.56,211.44,7.22]
[1756865764386,7.57,211.57,211.44,7.22]
[1756865764590,0.03160749,211.52,211.44,7.22]
[1756865766497,7.60160749,211.52,211.36,11.39035202]
[1756865766696,7.60160749,211.52,211.37,7.22]
[1756865766894,7.57,211.52,211.37,7.22]
[1756865767090,0.03287534,211.47,211.37,7.22]
[1756865776502,7.87,211.46,211.37,7.22]
[1756865776702,0.03287534,211.47,211.37,7.22]
[1756865780303,7.87,211.46,211.37,7.22]
[1756865781403,0.03287534,211.47,211.37,7.22]
[1756865782506,0.03287534,211.47,211.41,7.6]
[1756865784105,0.03287534,211.47,211.43,7.6]
[1756865784306,0.03287534,211.47,211.42,4.17035202]
[1756865784501,0.03287534,211.47,211.43,7.6]
[1756865784709,0.03287534,211.47,211.42,4.17035202]
[1756865785311,0.03287534,211.47,211.43,7.6]
[1756865785508,0.03287534,211.47,211.42,4.17035202]
[1756865786001,0.03287534,211.47,211.43,7.6]
[1756865786604,0.03287534,211.47,211.39,7.6]
[1756865789807,0.03287534,211.47,211.39,11.8571]
[1756865790309,0.03287534,211.47,211.39,7.6]
[1756865794912,0.03287534,211.47,211.43,7.6]
[1756865795515,0.03287534,211.47,211.44,4.2561]
[1756865795717,0.03287534,211.47,211.45,7.6]
[1756865796012,0.03287534,211.47,211.44,4.2561]
[1756865796213,0.03287534,211.47,211.37,66.2287]
[1756865796214,7.87,211.54,211.36,7.6]
[1756865796509,7.87,211.54,211.32,3.80601995]
[1756865796510,13.11894281,211.54,211.38,7.6]
[1756865797311,5.24894281,211.53,211.38,7.6]
[1756865797511,7.87,211.47,211.38,7.6]
[1756865802524,0.03080553,211.48,211.38,7.6]
[1756865803721,0.03080553,211.48,211.41,4.17035202]
[1756865803924,7.7,211.51,211.42,7.45]
[1756865804224,0.03143142,211.47,211.42,7.45]
[1756865804422,0.03143142,211.47,211.41,4.17035202]
[1756865805019,0.03143142,211.47,211.42,7.45]
[1756865805324,0.03143142,211.47,211.41,4.17035202]
[1756865805821,0.03143142,211.47,211.42,7.45]
[1756865806017,0.03143142,211.47,211.41,4.17035202]
[1756865806216,0.03143142,211.47,211.42,7.45]
[1756865806615,0.03143142,211.47,211.41,7.45]
[1756865807925,0.03143142,211.47,211.37,7.45]
[1756865808526,7.7,211.46,211.31,7.45]
[1756865808726,7.7,211.45,211.31,11.62035202]
[1756865808925,12.94894281,211.45,211.31,11.62035202]
[1756865809220,0.0299841,211.4,211.31,11.62035202]
[1756865813030,0.0299841,211.4,211.31,7.45]
[1756865813430,0.0299841,211.4,211.34,7.45]
[1756865816026,0.0299841,211.4,211.36,7.45]
[1756865816730,0.0299841,211.4,211.37,10.90971318]
[1756865816931,7.7,211.49,211.38,7.45]
[1756865818231,7.7,211.49,211.42,7.45]
[1756865818427,5.24894281,211.52,211.42,7.45]
[1756865818732,5.24894281,211.54,211.42,7.45]
[1756865819229,5.24894281,211.54,211.46,0.03596636]
[1756865819631,12.94894281,211.53,211.46,0.03596636]
[1756865820929,7.7,211.53,211.46,0.03596636]
[1756865821835,129.24894281,211.56,211.46,7.48596636]
[1756865822037,124.0,211.56,211.46,7.48596636]
[1756865823127,5.24894281,211.57,211.46,7.48596636]
[1756865823337,12.94894281,211.58,211.46,7.48596636]
[1756865823539,12.94894281,211.58,211.47,4.27927038]
[1756865823540,7.7,211.58,211.47,4.27927038]
[1756865823738,7.7,211.58,211.48,4.27927038]
[1756865823938,7.7,211.58,211.46,7.45]
[1756865824134,7.7,211.58,211.51,0.03545824]
[1756865827848,7.7,211.58,211.44,7.45]
[1756865828048,7.7,211.56,211.44,7.45]
[1756865828244,131.6,211.56,211.45,4.26962881]
[1756865828449,131.6,211.56,211.44,7.45]
[1756865828650,131.6,211.56,211.45,4.26938784]
[1756865828950,131.6,211.56,211.44,7.45]
[1756865829248,0.03355869,211.53,211.45,4.27017013]
[1756865829451,0.03355869,211.53,211.44,7.45]
[1756865829644,0.03355869,211.53,211.45,4.27098489]
[1756865829844,0.03355869,211.53,211.44,7.45]
[1756865830049,0.03355869,211.53,211.45,4.27131332]
[1756865830250,0.03355869,211.53,211.44,7.45]
[1756865830448,7.73355869,211.53,211.45,4.27122227]
[1756865830750,7.73355869,211.53,211.44,7.45]
[1756865830950,7.73355869,211.53,211.45,4.27035287]
[1756865831150,7.73355869,211.53,211.44,7.45]
[1756865831351,7.73355869,211.53,211.45,4.2708649]
[1756865831552,7.73355869,211.53,211.44,7.45]
[1756865831955,7.73355869,211.53,211.45,4.27056411]
[1756865832148,7.73355869,211.53,211.46,4.27056411]
[1756865832347,7.73355869,211.53,211.44,7.45]
[1756865832548,7.73355869,211.53,211.45,4.26987951]
[1756865832747,7.73355869,211.53,211.44,7.45]
[1756865832953,7.73355869,211.53,211.45,4.27008044]
[1756865833153,7.73355869,211.53,211.44,7.45]
[1756865833450,0.03355869,211.53,211.46,7.4]
[1756865833849,0.03355869,211.53,211.48,7.4]
[1756865834050,0.03355869,211.53,211.46,7.4]
[1756865834244,0.03355869,211.53,211.5,6.65221318]
[1756865834444,0.03355869,211.53,211.52,7.4]
[1756865834644,0.03355869,211.53,211.52,11.66504257]
[1756865835449,0.03355869,211.53,211.52,7.4]
[1756865835650,0.03355869,211.53,211.52,7.88]
[1756865836650,0.03355869,211.53,211.52,7.4]
[1756865836850,5.24894281,211.68,211.52,18.82368244]
[1756865837049,5.24894281,211.68,211.53,7.4]
[1756865837050,7.67,211.67,211.53,7.4]
[1756865838056,7.67,211.67,211.58,0.03594688]
[1756865839154,7.67,211.67,211.59,7.4]
[1756865839448,7.67,211.67,211.58,0.03594688]
[1756865843457,13.39894281,211.67,211.58,0.03594688]
[1756865844459,8.15,211.67,211.58,0.03594688]
[1756865845159,13.39894281,211.67,211.58,0.03594688]
[1756865845363,12.91894281,211.67,211.58,0.03594688]
[1756865845954,7.67,211.65,211.58,0.03594688]
[1756865847567,7.67,211.69,211.59,7.4]
[1756865849363,7.67,211.74,211.61,7.4]
[1756865850056,7.67,211.74,211.65,7.43172258]
[1756865853755,7.67,211.74,211.65,0.03172258]
[1756865856258,12.91894281,211.74,211.65,0.03172258]
[1756865856867,7.67,211.72,211.65,0.03172258]
[1756865857060,12.91894281,211.72,211.65,0.03172258]
[1756865858361,7.67,211.7,211.65,0.03172258]
[1756865858559,5.24894281,211.69,211.48,291.28]
[1756865858765,12.91894281,211.67,211.49,7.4]
[1756865858965,7.67,211.65,211.49,7.4]
[1756865860164,0.03019061,211.59,211.49,7.4]
[1756865860565,0.03019061,211.59,211.53,7.4]
[1756865862968,7.46,211.58,211.43,7.49]
[1756865863168,7.46,211.58,211.45,7.49]
[1756865863473,0.0345687,211.54,211.47,7.49]
[1756865865374,0.0345687,211.54,211.48,4.20168191]
[1756865865573,0.0345687,211.54,211.47,7.49]
[1756865868274,7.4945687,211.54,211.47,7.49]
[1756865869381,7.4945687,211.54,211.38,7.49]
[1756865869679,7.46,211.54,211.4,7.49]
[1756865870080,0.03151874,211.48,211.4,7.49]
[1756865870380,7.46,211.47,211.4,7.49]
[1756865871283,7.46,211.47,211.32,7.49]
[1756865871482,7.46,211.47,211.34,7.49]
[1756865871682,7.46,211.47,211.35,4.20448051]
[1756865871883,0.03554079,211.43,211.37,7.49]
[1756865876090,7.46,211.52,211.4,7.49]
[1756865877289,7.46,211.52,211.44,0.03291054]
[1756865881095,7.46,211.5,211.44,0.03291054]
[1756865881997,130.68,211.5,211.44,0.03291054]
[1756865884109,7.46,211.49,211.24,7.49]
[1756865884297,7.46,211.43,211.26,7.49]
[1756865884700,7.46,211.43,211.29,4.17761949]
[1756865884900,7.46,211.43,211.3,7.49]
[1756865885495,0.03273663,211.39,211.3,7.49]
[1756865885707,0.03273663,211.39,211.33,4.17761949]
[1756865886006,0.03273663,211.39,211.34,7.49]
[1756865886605,0.03273663,211.39,211.33,4.17761949]
[1756865887905,0.03273663,211.39,211.34,7.49]
[1756865888100,291.42,211.48,211.38,7.49]
[1756865888502,7.46,211.52,211.42,7.49]
[1756865888900,123.14,211.54,211.38,11.66761949]
[1756865889098,127.31761949,211.54,211.38,11.66761949]
[1756865889500,7.46,211.52,211.44,0.03460501]
[1756865890405,4.17761949,211.5,211.44,0.03460501]
[1756865890606,7.46,211.49,211.44,0.03460501]
[1756865890810,0.48,211.48,211.44,0.03460501]
[1756865891110,7.46,211.47,211.34,7.49]
[1756865892104,0.03502808,211.43,211.34,7.49]
[1756865894207,0.03502808,211.43,211.37,4.17761949]
[1756865894412,0.03502808,211.43,211.38,7.21]
[1756865894614,4.17761949,211.56,211.38,7.21]
[1756865894813,0.0354383,211.43,211.38,7.21]
[1756865895014,0.0354383,211.43,211.41,4.17761949]
[1756865895219,1.22,211.54,211.42,7.21]
[1756865895414,7.42,211.53,211.42,7.21]
[1756865896415,58.24,211.52,211.45,0.03557591]
[1756865897912,7.42,211.53,211.45,0.03557591]
[1756865898319,68.98,211.53,211.45,0.03557591]
[1756865900322,4.17761949,211.49,211.45,0.03557591]
[1756865900519,7.42,211.48,211.45,0.03557591]
[1756865901416,123.0,211.48,211.45,0.03557591]
[1756865901720,7.42,211.49,211.45,0.03557591]
[1756865902718,5.24894281,211.55,211.45,0.03557591]
[1756865902920,7.87341422,211.58,211.45,0.03557591]
[1756865902921,130.42,211.54,211.45,0.03557591]
[1756865903421,130.42,211.54,211.42,7.21]
[1756865903624,130.42,211.54,211.47,0.03566711]
[1756865904219,139.8465623,211.54,211.47,0.03566711]
[1756865904521,7.42,211.52,211.47,0.03566711]
[1756865904718,5.24894281,211.52,211.47,0.03566711]
[1756865904929,130.38,211.52,211.47,0.03566711]
[1756865905517,5.24894281,211.56,211.47,0.03566711]
[1756865905718,7.42,211.57,211.47,0.03566711]
[1756865905719,130.38,211.57,211.47,0.03566711]
[1756865907228,135.62894281,211.57,211.47,0.03566711]
[1756865908126,7.42,211.57,211.47,0.03566711]
[1756865908519,12.66894281,211.57,211.47,0.03566711]
[1756865908924,5.24894281,211.51,211.47,0.03566711]
[1756865909124,7.42,211.49,211.47,0.03566711]
[1756865909325,5.24894281,211.5,211.47,0.03566711]
[1756865909725,7.42,211.48,211.47,0.03566711]
[1756865910727,5.24894281,211.5,211.47,0.03566711]
[1756865911033,68.72,211.53,211.47,7.24566711]
[1756865911534,5.24894281,211.58,211.47,7.24566711]
[1756865911830,7.42,211.57,211.47,7.24566711]
[1756865912033,12.66894281,211.57,211.47,7.24566711]
[1756865912228,303.49103371,211.6,211.47,7.24566711]
[1756865912229,5.24894281,211.56,211.47,7.24566711]
[1756865912430,5.24894281,211.58,211.48,4.20517051]
[1756865912628,5.24894281,211.58,211.47,7.21]
[1756865912834,5.24894281,211.58,211.51,0.03146773]
[1756865913328,5.24894281,211.59,211.52,7.21]
[1756865913535,12.66894281,211.64,211.54,7.21]
[1756865913734,7.42,211.64,211.55,4.20184867]
[1756865914035,7.42,211.64,211.54,7.21]
[1756865914036,12.66894281,211.64,211.54,7.21]
[1756865914236,41.72,211.67,211.47,66.1985]
[1756865914237,5.24894281,211.65,211.57,0.03088868]
[1756865914538,41.72,211.67,211.57,7.24088868]
[1756865914926,7.42,211.69,211.59,7.21]
[1756865915131,5.24894281,211.71,211.59,7.21]
[1756865915327,419.50894281,211.73,211.59,7.21]
[1756865915528,414.26,211.73,211.59,7.21]
[1756865915737,291.42,211.73,211.63,7.241288]
[1756865916040,5.24894281,211.78,211.65,4.17761949]
[1756865916335,5.24894281,211.78,211.63,7.241288]
[1756865916336,7.42,211.77,211.63,7.241288]
[1756865916535,5.24894281,211.75,211.57,4.17761949]
[1756865916731,7.42,211.73,211.68,0.03224471]
[1756865916947,122.82,211.72,211.68,0.03224471]
[1756865917132,7.42,211.71,211.68,0.03224471]
[1756865917332,122.82,211.72,211.68,0.03224471]
[1756865917533,7.42,211.71,211.68,0.03224471]
[1756865918439,128.06894281,211.72,211.68,0.03224471]
[1756865918633,5.24894281,211.75,211.68,0.03224471]
[1756865918840,122.8,211.76,211.68,0.03224471]
[1756865918841,4.17761949,211.73,211.68,0.03224471]
[1756865919034,7.42,211.72,211.68,0.03224471]
[1756865919235,7.42,211.72,211.58,7.21]
[1756865919538,7.42,211.7,211.58,7.21]
[1756865919937,22.32,211.7,211.58,7.21]
[1756865921335,5.24894281,211.73,211.58,7.21]
[1756865921639,4.17761949,211.79,211.62,7.8]
[1756865921640,16.15,211.75,211.62,7.8]
[1756865922439,16.15,211.75,211.57,4.17761949]
[1756865922440,25.5765623,211.75,211.58,7.8]
[1756865922636,7.61,211.73,211.58,7.8]
[1756865923434,7.61,211.73,211.62,7.8]
[1756865924740,5.24894281,211.81,211.64,4.17761949]
[1756865924741,7.61,211.79,211.64,4.17761949]
[1756865924947,39.76,211.78,211.65,7.8]
[1756865925535,7.61,211.77,211.65,7.8]
[1756865926240,7.61,211.75,211.58,7.8]
[1756865928047,7.61,211.75,211.61,7.8]
[1756865929941,65.13,211.75,211.61,7.8]
[1756865930543,69.30761949,211.75,211.61,7.8]
[1756865930747,69.30761949,211.75,211.44,357.6255]
[1756865930748,69.30761949,211.75,211.56,7.8]
[1756865931348,0.03257524,211.68,211.63,0.0302718]
[1756865931647,0.03257524,211.68,211.64,7.8]
[1756865931950,0.03257524,211.68,211.63,0.0302718]
[1756865932750,7.64257524,211.68,211.63,0.0302718]
[1756865933045,7.64257524,211.68,211.63,7.8302718]
[1756865933046,0.03257524,211.68,211.63,7.8302718]
[1756865933647,7.64257524,211.68,211.63,0.0302718]
[1756865934049,7.61,211.67,211.63,0.0302718]
[1756865934541,0.03257524,211.68,211.63,7.8302718]
[1756865934746,0.03257524,211.68,211.64,7.8]
[1756865935745,0.03257524,211.68,211.63,0.0302718]
[1756865935947,7.61,211.67,211.63,0.0302718]
[1756865937553,0.03257524,211.68,211.63,7.8302718]
[1756865937953,0.03257524,211.68,211.63,0.0302718]
[1756865938452,7.61,211.67,211.63,0.0302718]
[1756865939552,0.03257524,211.68,211.63,0.0302718]
[1756865939953,7.61,211.67,211.63,0.0302718]
[1756865940149,0.03257524,211.68,211.63,0.0302718]
[1756865940750,0.03257524,211.68,211.64,7.8]
[1756865940956,0.03257524,211.68,211.63,0.0302718]
[1756865941353,0.03257524,211.68,211.64,7.8]
[1756865942049,0.03257524,211.68,211.63,0.0302718]
[1756865942250,0.03257524,211.68,211.63,7.8302718]
[1756865942563,0.03257524,211.68,211.63,0.0302718]
[1756865942954,0.03257524,211.68,211.64,7.8]
[1756865943259,0.03257524,211.68,211.63,0.0302718]
[1756865943459,0.03257524,211.68,211.64,7.8]
[1756865944152,0.03257524,211.68,211.63,0.0302718]
[1756865944759,7.61,211.67,211.63,0.0302718]
[1756865945256,0.03257524,211.68,211.63,0.0302718]
[1756865945458,7.61,211.67,211.63,0.0302718]
[1756865945756,0.03257524,211.68,211.63,7.8302718]
[1756865946059,7.61,211.67,211.63,0.0302718]
[1756865946254,0.03257524,211.68,211.63,0.0302718]
[1756865946461,0.03257524,211.68,211.64,7.8]
[1756865946660,0.03257524,211.68,211.63,0.0302718]
[1756865946856,0.03257524,211.68,211.64,7.8]
[1756865947057,0.03257524,211.68,211.63,0.0302718]
[1756865947257,0.03257524,211.68,211.64,7.8]
[1756865948056,0.03257524,211.68,211.63,0.0302718]
[1756865948453,0.03257524,211.68,211.64,7.8]
[1756865948653,0.03257524,211.68,211.63,0.0302718]
[1756865948959,0.03257524,211.68,211.64,6.63559886]
[1756865949261,0.03257524,211.68,211.65,7.8]
[1756865949854,0.03257524,211.68,211.64,6.63559886]
[1756865950457,0.03257524,211.68,211.65,7.8]
[1756865950662,0.03257524,211.68,211.64,6.63559886]
[1756865951959,0.03257524,211.68,211.65,7.89]
[1756865952157,7.61,211.79,211.65,8.37]
[1756865952363,7.61,211.79,211.66,4.18779622]
[1756865952558,7.61,211.79,211.67,12.07764937]
[1756865952758,7.61,211.79,211.7,7.89]
[1756865953466,7.61,211.79,211.72,0.03201107]
[1756865957172,7.66,211.83,211.72,0.03201107]
[1756865957564,7.66,211.83,211.73,4.1999426]
[1756865957770,7.66,211.87,211.74,18.72492988]
[1756865957969,7.66,211.87,211.76,7.89]
[1756865958370,7.66,211.87,211.72,71.08]
[1756865958371,5.24894281,211.91,211.79,6.63559886]
[1756865958575,7.66,211.91,211.79,14.52559886]
[1756865959072,7.66,211.91,211.83,0.03529692]
[1756865959866,12.90894281,211.95,211.83,0.03529692]
[1756865960371,5.24894281,211.97,211.86,7.89]
[1756865960576,7.66,211.96,211.87,6.63559886]
[1756865960976,7.66,211.96,211.89,0.03526648]
[1756865962684,5.24894281,212.01,211.89,0.03526648]
[1756865962685,12.90894281,212.01,211.89,0.03526648]
[1756865962885,7.66,212.01,211.89,0.03526648]
[1756865964978,19.54454167,212.01,211.89,0.03526648]
[1756865965184,7.66,211.98,211.89,0.03526648]
[1756865965985,12.90894281,211.98,211.89,0.03526648]
[1756865966183,7.66,211.97,211.89,0.03526648]
[1756865968879,7.66,211.97,211.89,7.92526648]
[1756865969083,125.0,212.04,211.89,7.92526648]
[1756865969285,7.66,212.03,211.89,7.92526648]
[1756865969486,7.66,212.03,211.89,7.89]
[1756865969681,7.66,212.03,211.94,0.03051873]
[1756865970588,134.02,212.03,211.94,0.03051873]
[1756865970788,7.66,212.03,211.94,0.03051873]
[1756865970989,111.48,212.03,211.94,0.03051873]
[1756865972390,7.66,212.03,211.94,0.03051873]
[1756865972585,7.66,212.04,211.94,0.03051873]
[1756865972890,7.66,212.01,211.94,0.03051873]
[1756865974488,7.66,211.99,211.94,0.03051873]
[1756865974687,7.66,212.04,211.94,0.03051873]
[1756865974887,7.66,212.02,211.94,0.03051873]
[1756865975291,7.66,212.02,211.89,7.89]
[1756865975590,7.66,212.02,211.96,0.03313615]
[1756865978999,8.14,212.02,211.96,0.03313615]
[1756865979187,8.14,212.02,211.84,7.89]
[1756865979188,7.66,212.0,211.84,7.89]
[1756865979384,5.24894281,211.99,211.84,7.89]
[1756865979585,7.66,211.98,211.84,7.89]
[1756865980292,0.03536907,211.93,211.84,7.89]
[1756865981085,0.03536907,211.93,211.84,17.89]
[1756865982586,7.55,211.92,211.84,10.0]
[1756865982788,0.03536907,211.93,211.84,10.0]
[1756865983497,7.55,211.92,211.84,10.0]
[1756865984394,7.55,211.91,211.84,10.0]
[1756865984594,12.79894281,211.92,211.84,2.11]
[1756865984789,7.55,211.88,211.84,2.11]
[1756865985099,125.36,211.87,211.84,2.11]
[1756865985797,7.55,211.86,211.84,2.11]
[1756865986198,0.03536429,211.88,211.84,2.11]
[1756865986395,7.55,211.86,211.84,2.11]
[1756865986593,88.0,211.87,211.84,2.11]
[1756865986791,0.03536429,211.88,211.84,2.11]
[1756865986989,7.55,211.86,211.84,2.11]
[1756865987189,125.22,211.87,211.84,2.11]
[1756865987396,8.03,211.86,211.74,7.38]
[1756865987698,7.55,211.86,211.74,7.38]
[1756865987893,0.03281876,211.82,211.74,7.38]
[1756865988297,0.03281876,211.82,211.64,7.38]
[1756865988498,0.03281876,211.82,211.66,7.38]
[1756865988698,7.55,211.83,211.66,7.38]
[1756865988894,0.0324426,211.76,211.66,7.38]
[1756865992198,20.1124426,211.76,211.66,7.38]
[1756865993102,7.55,211.75,211.66,7.38]
[1756865994202,40.37,211.75,211.66,7.38]
[1756865994403,7.55,211.75,211.66,7.38]
[1756865994604,37.48,211.74,211.66,7.38]
[1756865995006,0.0324426,211.76,211.66,7.38]
[1756865995206,34.46,211.75,211.66,7.38]
[1756865996596,0.0324426,211.76,211.66,7.38]
[1756865999006,7.55,211.75,211.66,7.38]
[1756865999607,79.01,211.75,211.66,7.38]
[1756866000199,4.16828131,211.74,211.6,7.38]
[1756866000405,7.55,211.73,211.6,7.38]
[1756866000904,0.03464563,211.69,211.6,7.38]
[1756866004700,69.94,211.68,211.6,7.38]
[1756866005409,0.03464563,211.69,211.6,7.38]